{"text_format":"1","workbook":"xlsx","n_sheets":16,"sheets":["Instructions","Summary","Sheet3","Sheet4","Sheet5","Sheet6","Sheet1","STATUTORY REPORTING & POLICY RE","FINE ARTS","Wellnes and PE","Community and Parental Inv","21st Century Workforce Dev","Dropout Prevention Strategies","Second Language Aquisition","Digital Learning Environment","Educational Programs for GT"],"not_rendered":{"charts":0,"images":2,"macros":1,"external_links":0,"defined_names":10,"comments":0,"pivot_tables":0},"unopened":[],"bounds":{"document_bytes":16777216,"sheet_cells":100000,"rows_first":2000,"rows_last":500,"rows_between":2000,"halvings":0,"cell_chars":16384,"cell_head_chars":4096},"cells_cut":0,"cells_raw":0,"read":"whole","date_system":"1900"}

{"sheet":"Instructions","index":0,"n_rows":0,"n_cols":0,"rows_kept":0,"cut":false,"hidden":false,"merged":[]}

{"sheet":"Summary","index":1,"n_rows":30,"n_cols":9,"rows_kept":30,"cut":false,"hidden":false,"merged":[[16,0,16,1],[14,1,14,5],[15,3,15,5]]}
[]
[]
[]
[null,"Brownsville ISD"]
[null,"INSERT CAMPUS NAME"]
[null,"Program/Category","Unacceptable","Acceptable","Recognized","Exemplary"]
[null,"Fine Arts",{"$f":"IF($I7=C6,C6,\"\")","v":""},{"$f":"IF($I7=D6,D6,\"\")","v":""},"Recognized","",null,null,{"$f":"'FINE ARTS'!M38","v":"Recognized"}]
[null,"Wellness and Physical Education",{"$f":"IF($I8=C$6,C$6,\"\")","v":""},"","Recognized","",null,null,{"$f":"'Wellnes and PE'!M33","v":"Recognized"}]
[null,"Community and Parental Involvement","","","Recognized","",null,null,{"$f":"'Community and Parental Inv'!M27","v":"Recognized"}]
[null,"21st Century Workforce Development","","Acceptable","","",null,null,{"$f":"'21st Century Workforce Dev'!M24","v":"Acceptable"}]
[null,"Dropout Prevention Strategies","","","","Exemplary",null,null,{"$f":"'Dropout Prevention Strategies'!M21","v":"Exemplary"}]
[null,"Second Language Acquisition","","","","Exemplary",null,null,{"$f":"'Second Language Aquisition'!M22","v":"Exemplary"}]
[null,"Digital Learning Environment","","","Recognized","",null,null,{"$f":"'Digital Learning Environment'!M26","v":"Recognized"}]
[null,"Educational Programs for Gifted and Talented","","","Recognized","",null,null,{"$f":"'Educational Programs for GT'!M25","v":"Recognized"}]
[null,"Statutory Reporting and Policy Requirements"]
[null,"Compliance with statutory reporting and policy requirements by LEA based on criteria that was developed by a local committee:",{"$f":"IF(I16=\"Yes\",\"\",\"No\")","v":""},{"$f":"IF(I16=\"Yes\",\"Yes\",\"\")","v":"Yes"},null,null,null,null,{"$f":"IF(('STATUTORY REPORTING & POLICY RE'!M25)<>\"\",\"Yes\",\"No\")","v":"Yes"}]
["Overall Rating",null,{"$f":"IF($E27=C$6,C$6,\"\")","v":""},{"$f":"IF($E27=D$6,D$6,\"\")","v":""},"Recognized",""]
[null,null,null,{"$f":"COUNTIF(C7:C14,\"unacceptable\")","v":0}]
[null,null,null,{"$f":"COUNTIF(D7:D16,\"Acceptable\")","v":1},{"$f":"D19*1","v":1}]
[null,null,null,{"$f":"COUNTIF(E7:E16,\"Recognized\")","v":5},{"$f":"D20*2","v":10}]
[null,null,null,{"$f":"COUNTIF(F7:F16,\"Exemplary\")","v":2},{"$f":"D21*3","v":6}]
[null,null,null,{"$f":"SUM(D18:D21)","v":8},{"$f":"ROUND((SUM(E19:E21)/D22),0)","v":2}]
[null,null,null,0,"Unacceptable"]
[null,null,null,1,"Acceptable"]
[null,null,null,2,"recognized"]
[null,null,null,3,"exemplary"]
[null,null,null,null,{"$f":"IF(ISERROR(VLOOKUP(E22,D23:E26,2)),\"\",VLOOKUP(E22,D23:E26,2))","v":"recognized"}]
[]
["Division of Instructional Support "]
["adapted by Dr. Roni Louise Rentfro, DCSI for BISD established criteria 1-2015"]

{"sheet":"Sheet3","index":2,"n_rows":0,"n_cols":0,"rows_kept":0,"cut":false,"hidden":true,"merged":[]}

{"sheet":"Sheet4","index":3,"n_rows":29,"n_cols":11,"rows_kept":29,"cut":false,"hidden":true,"merged":[[24,0,24,7],[25,0,25,7],[26,0,26,7],[18,0,18,7],[19,0,19,7],[20,0,20,7],[21,0,21,7],[22,0,22,7],[23,0,23,7],[17,0,17,7],[6,0,6,7],[7,0,7,7],[8,0,8,7],[9,0,9,7],[10,0,10,7],[11,0,11,7],[12,0,12,7],[13,0,13,7],[14,0,14,7],[15,0,15,7],[16,0,16,7],[5,0,5,7],[0,0,0,10],[1,0,1,10],[2,0,2,7],[3,0,3,7],[4,0,4,7]]}
["Student Recognition - Individual"]
["Indicate the number of individual students that earned distinction in fine arts competitions sponsored by UIL or arts education associations (TMEA, TDEA, TFA, TAEA, TDEA) per program in 2013-2014? (Competitions beyond the district level are weighted)   "]
["Competition",null,null,null,null,null,null,null,"# of students","Weight","Points"]
["Music - TMEA All-Region",null,null,null,null,null,null,null,null,2,{"$f":"SUM(I4*J4)","v":0}]
["Music TMEA Area",null,null,null,null,null,null,null,null,5,{"$f":"SUM(I5*J5)","v":0}]
["Music TMEA All-State",null,null,null,null,null,null,null,null,10,0]
["Music UIL Solo and Ensemble",null,null,null,null,null,null,null,null,1,0]
["Music State Solo and Ensemble Participant",null,null,null,null,null,null,null,null,2,0]
["Music State Solo and Ensemble Medalist",null,null,null,null,null,null,null,null,4,0]
["Music State Solo and Ensemble Outstanding Performer",null,null,null,null,null,null,null,null,10,0]
["Visual Art - VASE medalist",null,null,null,null,null,null,null,null,1,0]
["VASE State Qualifier",null,null,null,null,null,null,null,null,3,0]
["VASE State Medalist",null,null,null,null,null,null,null,null,6,0]
["VASE Gold Seal",null,null,null,null,null,null,null,null,10,0]
["Theater -  TFA Trophy Winner",null,null,null,null,null,null,null,null,1,0]
["Theater -  TFA State Qualifier",null,null,null,null,null,null,null,null,4,0]
["Theater -  TFA State Finalist",null,null,null,null,null,null,null,null,8,0]
["Theater -  TFA State Champion",null,null,null,null,null,null,null,null,10,0]
["Theater UIL Theatrical Design State Qualifier",null,null,null,null,null,null,null,null,2,0]
["Theater UIL Theatrical Design State Medalist",null,null,null,null,null,null,null,null,8,0]
["Theater UIL Theatrical Design State Champion",null,null,null,null,null,null,null,null,10,0]
["Theater One Act Play Zone  Individual Awards including Honorable Mention, All-Star Cast, and Best Actor and Best Actress",null,null,null,null,null,null,null,null,2,0]
["Theater One Act Play District Individual Awards including Honorable Mention, All-Star Cast, and Best Actor and Best Actress",null,null,null,null,null,null,null,null,4,0]
["Theater One Act Play Area Individual Awards including Honorable Mention, All-Star Cast, and Best Actor and Best Actress",null,null,null,null,null,null,null,null,6,0]
["Theater One Act Play Regional Individual Awards including Honorable Mention, All-Star Cast, and Best Actor and Best Actress",null,null,null,null,null,null,null,null,8,0]
["Theater One Act Play State Individual Awards including Honorable Mention, All-Star Cast, and Best Actor and Best Actress",null,null,null,null,null,null,null,null,10,0]
["*Total",null,null,null,null,null,null,null,{"$f":"SUM(I4:I26)","v":0},null,{"$f":"SUM(K4:K26)","v":0}]
[]
["Use this point total to answer question 9C on the High School Evaluation Instrument"]

{"sheet":"Sheet5","index":4,"n_rows":0,"n_cols":0,"rows_kept":0,"cut":false,"hidden":true,"merged":[]}

{"sheet":"Sheet6","index":5,"n_rows":0,"n_cols":0,"rows_kept":0,"cut":false,"hidden":true,"merged":[]}

{"sheet":"Sheet1","index":6,"n_rows":0,"n_cols":0,"rows_kept":0,"cut":false,"hidden":true,"merged":[]}

{"sheet":"STATUTORY REPORTING & POLICY RE","index":7,"n_rows":81,"n_cols":16,"rows_kept":81,"cut":false,"hidden":true,"merged":[[4,0,6,2],[5,5,5,10],[5,3,5,4],[4,11,4,12],[6,7,6,8],[6,9,6,10]]}
[]
[]
[]
[]
["Statutory Reporting and Policy Requirements",null,null,{"$f":"A5&\" Current Rating:\"","v":"Statutory Reporting and Policy Requirements Current Rating:"},null,null,null,null,null,null,null,{"$f":"IF((M25)<>\"\",M25&\" (Yes)\",\"No\")","v":"Acceptable (Yes)"}]
[null,null,null,null,null,null,null,null,null,null,null,{"$f":"Summary!B5","v":"INSERT CAMPUS NAME"}]
[null,null,null,"NO","NO","YES","YES",null,null,null,null,"Evidence","Rating",null,null,{"$f":"COUNTIF(P8:P83,\">1\")","v":0}]
["Staff--all programs","All instructional staff met the highly qualified standard.",null,null,null,null,"x",null,null,null,null,"Principals Attestation Compiance w/ P.L. 107-110, Section 111(i) Qual. for Teachers & Paras",{"$f":"IF(ISLOGICAL(IF(G8=\"X\",\"Acceptable\",IF(I8=\"X\",\"Recognized\",IF(K8=\"X\",\"Exemplary\",IF(E8=\"X\",\"Unacceptable\"))))),\"\",IF(G8=\"X\",\"Acceptable\",IF(I8=\"X\",\"Recognized\",IF(K8=\"X\",\"Exemplary\",IF(E8=\"X\",\"Unacceptable\")))))","v":"Acceptable"},null,null,{"$f":"COUNTA(G8,I8,K8)","v":1}]
["Wellness","Campus health screenings were conducted at least once during the 2014-2015 school year.",null,null,null,null,"x",null,null,null,null,"Health Screening Report (14-15 school year)",{"$f":"IF(ISLOGICAL(IF(G9=\"X\",\"Acceptable\",IF(I9=\"X\",\"Recognized\",IF(K9=\"X\",\"Exemplary\",IF(E9=\"X\",\"Unacceptable\"))))),\"\",IF(G9=\"X\",\"Acceptable\",IF(I9=\"X\",\"Recognized\",IF(K9=\"X\",\"Exemplary\",IF(E9=\"X\",\"Unacceptable\")))))","v":"Acceptable"},null,null,{"$f":"COUNTA(G9,I9,K9)","v":1}]
["Parental","Each Title I, Part A campus educates teachers, pupil services personnel, principals, and other staff members, with the assistance of parents, in the value and utility of the contributions of parents.",null,null,null,null,"x",null,null,null,null,"Campus Staff Dev. Agenda and sign-in sheets   ",{"$f":"IF(ISLOGICAL(IF(G10=\"X\",\"Acceptable\",IF(I10=\"X\",\"Recognized\",IF(K10=\"X\",\"Exemplary\",IF(E10=\"X\",\"Unacceptable\"))))),\"\",IF(G10=\"X\",\"Acceptable\",IF(I10=\"X\",\"Recognized\",IF(K10=\"X\",\"Exemplary\",IF(E10=\"X\",\"Unacceptable\")))))","v":"Acceptable"},null,null,{"$f":"COUNTA(G10,I10,K10)","v":1}]
["21st Century","A comprehensive Guidance and Counseling Program is evident at the campus/district.",null,null,null,null,"x",null,null,null,null,"District Peer Review Compliance Report",{"$f":"IF(ISLOGICAL(IF(G11=\"X\",\"Acceptable\",IF(I11=\"X\",\"Recognized\",IF(K11=\"X\",\"Exemplary\",IF(E11=\"X\",\"Unacceptable\"))))),\"\",IF(G11=\"X\",\"Acceptable\",IF(I11=\"X\",\"Recognized\",IF(K11=\"X\",\"Exemplary\",IF(E11=\"X\",\"Unacceptable\")))))","v":"Acceptable"},null,null,{"$f":"COUNTA(G11,I11,K11)","v":1}]
["At-risk","Campus/District Improvement Plan was presented to the BISD Board of Trustees for approval.",null,null,null,null,"x",null,null,null,null,"14-15 CIP (approved 11/17/14 Item # 19) 15-16 CIP pending board approval","Acceptable",null,null,1]
["Second Language","BIL/ESL identified students were all placed in all appropriate support services (504, Dyslexia, or Special Education).",null,null,null,null,"x",null,null,null,null,"E-schools Bil. Program Codes indicating services received by Bil/ELL students","Acceptable",null,null,1]
["Digital Learning","Completed STARCHART submitted by district deadline.",null,null,null,null,"x",null,null,null,null,"STARCHART CAMPUS REPORT","Acceptable",null,null,1]
["Gifted & Talented","Campus provided G/T services to all identified students.",null,null,null,null,"x",null,null,null,null,"E-schools list/Roster of students served through G/T campus ","Acceptable",null,null,1]
[9,null,null,null,null,null,null,null,null,null,null,null,"",null,null,0]
[10,null,null,null,null,null,null,null,null,null,null,null,{"$f":"IF(ISLOGICAL(IF(G17=\"X\",\"Acceptable\",IF(I17=\"X\",\"Recognized\",IF(K17=\"X\",\"Exemplary\",IF(E17=\"X\",\"Unacceptable\"))))),\"\",IF(G17=\"X\",\"Acceptable\",IF(I17=\"X\",\"Recognized\",IF(K17=\"X\",\"Exemplary\",IF(E17=\"X\",\"Unacceptable\")))))","v":""},null,null,0]
[null,null,null,null,null,null,null,null,null,null,null,{"$f":"COUNTIF(M8:M17,\"Acceptable\")","v":8},{"$f":"L18*1","v":8},null,null,0]
[null,null,null,null,null,null,null,null,null,null,null,{"$f":"COUNTIF(M8:M17,\"Recognized\")","v":0},{"$f":"L19*2","v":0},null,null,0]
[null,null,null,null,null,null,null,null,null,null,null,{"$f":"COUNTIF(M8:M17,\"Exemplary\")","v":0},{"$f":"L20*3","v":0},null,null,0]
[null,null,null,null,null,null,null,null,null,null,null,{"$f":"SUM(L18:L20)","v":8},{"$f":"ROUND((SUM(M18:M20)/L21),0)","v":1},null,null,0]
[null,null,null,null,null,null,null,null,null,null,null,1,"Acceptable",null,null,0]
[null,null,null,null,null,null,null,null,null,null,null,2,"Recognized",null,null,0]
[null,null,null,null,null,null,null,null,null,null,null,3,"Exemplary",null,null,0]
[null,null,null,null,null,null,null,null,null,null,null,null,{"$f":"IF(ISERROR(VLOOKUP(M21,L22:M24,2)),\"\",VLOOKUP(M21,L22:M24,2))","v":"Acceptable"},null,null,0]
[null,null,null,null,null,null,null,null,null,null,null,null,null,null,null,0]
[null,null,null,null,null,null,null,null,null,null,null,null,null,null,null,0]
[null,null,null,null,null,null,null,null,null,null,null,null,null,null,null,0]
[null,null,null,null,null,null,null,null,null,null,null,null,null,null,null,0]
[null,null,null,null,null,null,null,null,null,null,null,null,null,null,null,0]
[null,null,null,null,null,null,null,null,null,null,null,null,null,null,null,0]
[null,null,null,null,null,null,null,null,null,null,null,null,null,null,null,0]
[null,null,null,null,null,null,null,null,null,null,null,null,null,null,null,0]
[null,null,null,null,null,null,null,null,null,null,null,null,null,null,null,0]
[null,null,null,null,null,null,null,null,null,null,null,null,null,null,null,0]
[null,null,null,null,null,null,null,null,null,null,null,null,null,null,null,0]
[null,null,null,null,null,null,null,null,null,null,null,null,null,null,null,0]
[null,null,null,null,null,null,null,null,null,null,null,null,null,null,null,0]
[null,null,null,null,null,null,null,null,null,null,null,null,null,null,null,0]
[null,null,null,null,null,null,null,null,null,null,null,null,null,null,null,0]
[null,null,null,null,null,null,null,null,null,null,null,null,null,null,null,0]
[null,null,null,null,null,null,null,null,null,null,null,null,null,null,null,0]
[null,null,null,null,null,null,null,null,null,null,null,null,null,null,null,0]
[null,null,null,null,null,null,null,null,null,null,null,null,null,null,null,0]
[null,null,null,null,null,null,null,null,null,null,null,null,null,null,null,0]
[null,null,null,null,null,null,null,null,null,null,null,null,null,null,null,0]
[null,null,null,null,null,null,null,null,null,null,null,null,null,null,null,0]
[null,null,null,null,null,null,null,null,null,null,null,null,null,null,null,0]
[null,null,null,null,null,null,null,null,null,null,null,null,null,null,null,0]
[null,null,null,null,null,null,null,null,null,null,null,null,null,null,null,0]
[null,null,null,null,null,null,null,null,null,null,null,null,null,null,null,0]
[null,null,null,null,null,null,null,null,null,null,null,null,null,null,null,0]
[null,null,null,null,null,null,null,null,null,null,null,null,null,null,null,0]
[null,null,null,null,null,null,null,null,null,null,null,null,null,null,null,0]
[null,null,null,null,null,null,null,null,null,null,null,null,null,null,null,0]
[null,null,null,null,null,null,null,null,null,null,null,null,null,null,null,0]
[null,null,null,null,null,null,null,null,null,null,null,null,null,null,null,0]
[null,null,null,null,null,null,null,null,null,null,null,null,null,null,null,0]
[null,null,null,null,null,null,null,null,null,null,null,null,null,null,null,0]
[null,null,null,null,null,null,null,null,null,null,null,null,null,null,null,0]
[null,null,null,null,null,null,null,null,null,null,null,null,null,null,null,0]
[null,null,null,null,null,null,null,null,null,null,null,null,null,null,null,{"$f":"COUNTA(G62,I62,K62)","v":0}]
[null,null,null,null,null,null,null,null,null,null,null,null,null,null,null,0]
[null,null,null,null,null,null,null,null,null,null,null,null,null,null,null,0]
[null,null,null,null,null,null,null,null,null,null,null,null,null,null,null,0]
[null,null,null,null,null,null,null,null,null,null,null,null,null,null,null,0]
[null,null,null,null,null,null,null,null,null,null,null,null,null,null,null,0]
[null,null,null,null,null,null,null,null,null,null,null,null,null,null,null,0]
[null,null,null,null,null,null,null,null,null,null,null,null,null,null,null,0]
[null,null,null,null,null,null,null,null,null,null,null,null,null,null,null,0]
[null,null,null,null,null,null,null,null,null,null,null,null,null,null,null,0]
[null,null,null,null,null,null,null,null,null,null,null,null,null,null,null,0]
[null,null,null,null,null,null,null,null,null,null,null,null,null,null,null,0]
[null,null,null,null,null,null,null,null,null,null,null,null,null,null,null,0]
[null,null,null,null,null,null,null,null,null,null,null,null,null,null,null,0]
[null,null,null,null,null,null,null,null,null,null,null,null,null,null,null,0]
[null,null,null,null,null,null,null,null,null,null,null,null,null,null,null,0]
[null,null,null,null,null,null,null,null,null,null,null,null,null,null,null,0]
[null,null,null,null,null,null,null,null,null,null,null,null,null,null,null,0]
[null,null,null,null,null,null,null,null,null,null,null,null,null,null,null,0]
[null,null,null,null,null,null,null,null,null,null,null,null,null,null,null,0]

{"sheet":"FINE ARTS","index":8,"n_rows":60,"n_cols":16,"rows_kept":60,"cut":false,"hidden":true,"merged":[[4,11,4,12],[4,0,5,2],[5,5,5,6],[5,7,5,8],[5,9,5,10],[6,1,6,12],[12,1,12,12],[16,1,16,12],[22,1,22,12],[24,1,24,12]]}
[]
[]
[]
[null,"Indicator",null,null,null,null,null,null,null,null,null,{"$f":"Summary!B5","v":"INSERT CAMPUS NAME"}]
["Fine Arts Program",null,null,{"$f":"A5&\" Current Rating  ------------------------------->\"","v":"Fine Arts Program Current Rating  ------------------------------->"},null,null,null,null,null,null,null,{"$f":"M38","v":"Recognized"}]
[null,null,null,"Unacceptable",null,"Acceptable",null,"Recognized",null,"Exemplary",null,"Evidence","Rating",null,null,{"$f":"COUNTIF(P7:P92,\">1\")","v":0}]
[null,"All Level Criteria",null,null,null,null,null,null,null,null,null,null,null,null,null,{"$f":"COUNTA(G7,I7,K7)","v":0}]
["All level #1","Indicate the number of fine arts experiences that are offered year round for extension outside the school day only. (Ex: show choir, fine arts dance, ballroom dance, etc.)",null,"No experiences",null,"At least one experience.",null,"At least 2 experiences.","X","Elementary/ MS at least 3 experiences and HS at least 4 experiences.",null,"PICTURES",{"$f":"IF(ISLOGICAL(IF(G8=\"X\",\"Acceptable\",IF(I8=\"X\",\"Recognized\",IF(K8=\"X\",\"Exemplary\",IF(E8=\"X\",\"Unacceptable\"))))),\"\",IF(G8=\"X\",\"Acceptable\",IF(I8=\"X\",\"Recognized\",IF(K8=\"X\",\"Exemplary\",IF(E8=\"X\",\"Unacceptable\")))))","v":"Recognized"},null,null,{"$f":"COUNTA(G8,I8,K8)","v":1}]
["All level #2","Indicate the number of TEKS-based fine arts programs  offered as a separate class during the school day (Elementary) or for credit (Secondary), i.e., Choir, Band, piano, theater, visual arts, fine arts dance, ballroom dance, etc.",null,"Elementary offers no programs or MS/HS offers less than 2 programs.",null,"Elementary offers at least one program or MS/HS offers at least 2 programs.",null,"Elementary offers at least one program or MS/HS offers at least 3 programs.",null,"Elementary offers at least 2 programs or MS/HS offers at least 5 programs.","X","                                                   PICTURES",{"$f":"IF(ISLOGICAL(IF(G9=\"X\",\"Acceptable\",IF(I9=\"X\",\"Recognized\",IF(K9=\"X\",\"Exemplary\",IF(E9=\"X\",\"Unacceptable\"))))),\"\",IF(G9=\"X\",\"Acceptable\",IF(I9=\"X\",\"Recognized\",IF(K9=\"X\",\"Exemplary\",IF(E9=\"X\",\"Unacceptable\")))))","v":"Exemplary"},null,null,{"$f":"COUNTA(G9,I9,K9)","v":1}]
["All level #3","Indicate the number of times fine arts programs performed/exhibited at non-competitive events and/or performances for the community and businesses during the 2014-2015 school year.  (Examples: concerts, parades, musicals, holiday programs, ballroom, fine arts dance, etc.).",null,"Elementary or MS less than 5 performances/ exhibitions or HS less than 15 exhibitions/ performances.",null,"Elementary or MS at least 5 performances/ exhibitions OR HS at least 15","X","Elementary or MS at least 10 performances/ exhibitions OR HS at least 25",null,"Elementary or MS at least 15 performances/ exhibitions OR HS at least 35",null,"PICTURES","Acceptable",null,null,{"$f":"COUNTA(G10,I10,K10)","v":1}]
["All level #4","Fine Arts teachers were supported by the campus in attending district, regional, and/or state fine arts professional development.",null,"Fine Arts teachers were not permitted to attend.",null,"Fine arts teachers were permitted to attend.",null,"Fine arts teachers were encouraged to attend.",null,"Fine arts teachers were required to attend.","X","TRANSCRIPT ","Exemplary",null,null,1]
["All level #5","All fine arts teachers are provided with appropriate dedicated classrooms/facilities that support the instructional needs of the fine arts programs.",null,"No appropriate classrooms or facilities. ",null,"Less than 80% of fine arts teachers have appropriate dedicated classrooms or facilities.",null,"81-99% of fine arts teachers have appropriate dedicated classrooms or facilities.",null,"100% of fine arts teachers have appropriate dedicated classrooms or facilities.","X","MAP","Exemplary",null,null,1]
[null,"Elementary ONLY Criteria",null,null,null,null,null,null,null,null,null,null,null,null,null,{"$f":"COUNTA(G13,I13,K13)","v":0}]
["Elementary only #1","Instructional Minutes -- Indicate the number of instructional minutes per week for fine arts classes.",null,"Less than 30 minutes",null,"At least 30 minutes",null,"At least 45 minutes","X","At least 60 minutes",null,"MASTER SCHEDULE","Recognized",null,null,1]
["Elementary only #2","Indicate the number of multi-school fine arts based competitions your campus has participated in (i.e. music memory, TEAM, picture memory, ballroom dance, etc.).",null,"None",null,"At least one",null,"At least 2",null,"At least 3","X","UIL ROSTERS, BALLROOM","Exemplary",null,null,1]
["Elementary only #3","Have any of your fine arts students or groups been recognized beyond the district?   ",null,"None","X","At least one",null,"At least 2",null,"At least 3",null,null,"Unacceptable",null,null,0]
[null,"Secondary ONLY Criteria",null,null,null,null,null,null,null,null,null,null,null,null,null,{"$f":"COUNTA(G17,I17,K17)","v":0}]
["Secondary only #1","What % of the student population are enrolled in TEKS based fine arts programs for credit?  ",null,"MS less than 25% OR HS less than 10%",null,"MS at least 25%/ HS at least 10%",null,"MS at least 50%/  HS at least 25%",null,"MS at least 75%/ HS at least 50%",null,null,{"$f":"IF(ISLOGICAL(IF(G18=\"X\",\"Acceptable\",IF(I18=\"X\",\"Recognized\",IF(K18=\"X\",\"Exemplary\",IF(E18=\"X\",\"Unacceptable\"))))),\"\",IF(G18=\"X\",\"Acceptable\",IF(I18=\"X\",\"Recognized\",IF(K18=\"X\",\"Exemplary\",IF(E18=\"X\",\"Unacceptable\")))))","v":""},null,null,0]
["Secondary only #2","Indicate the number of ensembles/groups that participated in UIL and district sanctioned competitions per program in 2014-2015 (i.e. Band, Choir; One Act Play, fine arts dance, ballroom dance, etc.)",null,"No groups participated",null,"MS at least 1 group participated/ HS at least 2 groups.",null,"MS at least 3 groups participated/ HS at least 6 groups.",null,"MS at least 6 groups participated/ HS at least 11 groups.",null,null,"",null,null,0]
["Secondary only #3","Indicate the number of individual UIL, TMEA, or TAEA competitions your campus fine arts programs participated in during the 2014-2015 school year (Band All-Region,  Region Choir, ACDA, TCDA, Jr. VASE)",null,"0 competitions",null,"At least 1 competition",null,"MS at least 2 competitions or HS at least 4",null,"MS at least 3 competitions or HS at least 7",null,null,"",null,null,0]
["Secondary only #4","Indicate the number of distinctions earned by groups in UIL and district sanctioned competitions per program in 2014-2015. (i.e., UIL Concert & Sightreading (1st Division), UIL One Act Play (1st, 2nd, or 3rd place, fine arts dance contest (1st Division), ballroom dance (1st, 2nd, 3rd), etc.",null,"No distinctions earned",null,"MS OR HS at least 1 distinction earned",null,"MS at least 3 distinctions earned or HS at least 5",null,"MS at least 6 distinctions earned or HS at least 10",null,null,"",null,null,0]
["Secondary only #5","Fine Arts Tiered Instruction -- Music groups are scheduled to facilitate tiered and sequential instruction (i.e. Mixed choir, boys'/womens' choir, beginning, concert, symphonic band, art 6, 7, 8, dance 6, 7, 8, etc.) and practice regularly during the school day.  ",null,"None scheduled.",null,"Sometimes scheduled.",null,"Most scheduled.",null,"Always scheduled.",null,null,"",null,null,0]
[null,"Middle School ONLY Criteria",null,null,null,null,null,null,null,null,null,null,null,null,null,{"$f":"COUNTA(G23,I23,K23)","v":0}]
["Middle School ONLY","Indicate the number of individual students that earned distinction in fine arts competitions sponsored by UIL or arts education associations (TMEA, TAEA) per program in 2014-2015. (i.e Band All-Region, Region Choir, ACDA, TCDA, Jr. VASE, etc.) ",null,"No students earned distinctions",null,"At least one student earned distinction.",null,"At least 20 students earned distinction",null,"At least 30 students earned distinction",null,null,"",null,null,0]
[null,"High School ONLY Criteria",null,null,null,null,null,null,null,null,null,null,null,null,null,{"$f":"COUNTA(G25,I25,K25)","v":0}]
["High School ONLY",{"$f":"\"Indicate the number of individual student recognition POINTS as determined by  worksheet Sheet4, which weighs distinctions by advancement. Sheet4 current value = \"&Sheet4!K27","v":"Indicate the number of individual student recognition POINTS as determined by  worksheet Sheet4, which weighs distinctions by advancement. Sheet4 current value = 0"},null,null,null,"At least one point.",null,"At least 300 points.",null,"At least 500 points.",null,null,{"$f":"IF(ISLOGICAL(IF(G26=\"X\",\"Acceptable\",IF(I26=\"X\",\"Recognized\",IF(K26=\"X\",\"Exemplary\",IF(E26=\"X\",\"Unacceptable\"))))),\"\",IF(G26=\"X\",\"Acceptable\",IF(I26=\"X\",\"Recognized\",IF(K26=\"X\",\"Exemplary\",IF(E26=\"X\",\"Unacceptable\")))))","v":""},null,null,0]
[null,null,null,null,null,null,null,null,null,null,null,null,{"$f":"IF(ISLOGICAL(IF(G27=\"X\",\"Acceptable\",IF(I27=\"X\",\"Recognized\",IF(K27=\"X\",\"Exemplary\",IF(E27=\"X\",\"Unacceptable\"))))),\"\",IF(G27=\"X\",\"Acceptable\",IF(I27=\"X\",\"Recognized\",IF(K27=\"X\",\"Exemplary\",IF(E27=\"X\",\"Unacceptable\")))))","v":""},null,null,{"$f":"COUNTA(G27,I27,K27)","v":0}]
[null,null,null,null,null,null,null,null,null,null,null,null,{"$f":"IF(ISLOGICAL(IF(G28=\"X\",\"Acceptable\",IF(I28=\"X\",\"Recognized\",IF(K28=\"X\",\"Exemplary\",IF(E28=\"X\",\"Unacceptable\"))))),\"\",IF(G28=\"X\",\"Acceptable\",IF(I28=\"X\",\"Recognized\",IF(K28=\"X\",\"Exemplary\",IF(E28=\"X\",\"Unacceptable\")))))","v":""},null,null,{"$f":"COUNTA(G28,I28,K28)","v":0}]
[null,null,null,null,null,null,null,null,null,null,null,{"$f":"COUNTIF(M6:M26,\"Unacceptable\")","v":1},{"$f":"IF(ISLOGICAL(IF(G29=\"X\",\"Acceptable\",IF(I29=\"X\",\"Recognized\",IF(K29=\"X\",\"Exemplary\",IF(E29=\"X\",\"Unacceptable\"))))),\"\",IF(G29=\"X\",\"Acceptable\",IF(I29=\"X\",\"Recognized\",IF(K29=\"X\",\"Exemplary\",IF(E29=\"X\",\"Unacceptable\")))))","v":""},null,null,{"$f":"COUNTA(G29,I29,K29)","v":0}]
[null,null,null,null,null,null,null,null,null,null,null,{"$f":"COUNTIF(M7:M26,\"Acceptable\")","v":1},{"$f":"L30*1","v":1},null,null,{"$f":"COUNTA(G30,I30,K30)","v":0}]
[null,null,null,null,null,null,null,null,null,null,null,{"$f":"COUNTIF(M7:M26,\"Recognized\")","v":2},{"$f":"L31*2","v":4},null,null,0]
[null,null,null,null,null,null,null,null,null,null,null,{"$f":"COUNTIF(M8:M26,\"Exemplary\")","v":4},{"$f":"L32*3","v":12},null,null,0]
[null,null,null,null,null,null,null,null,null,null,null,{"$f":"SUM(L29:L32)","v":8},{"$f":"ROUND((SUM(M29:M32)/L33),0)","v":2},null,null,0]
[null,null,null,null,null,null,null,null,null,null,null,0,"Unacceptable"]
[null,null,null,null,null,null,null,null,null,null,null,1,"Acceptable",null,null,0]
[null,null,null,null,null,null,null,null,null,null,null,2,"Recognized",null,null,0]
[null,null,null,null,null,null,null,null,null,null,null,3,"Exemplary",null,null,0]
[null,null,null,null,null,null,null,null,null,null,null,null,{"$f":"IF(ISERROR(VLOOKUP(M33,L34:M37,2)),\"\",VLOOKUP(M33,L34:M37,2))","v":"Recognized"},null,null,0]
[null,null,null,null,null,null,null,null,null,null,null,null,null,null,null,0]
[null,null,null,null,null,null,null,null,null,null,null,null,null,null,null,0]
[null,null,null,null,null,null,null,null,null,null,null,null,null,null,null,0]
[null,null,null,null,null,null,null,null,null,null,null,null,null,null,null,0]
[null,null,null,null,null,null,null,null,null,null,null,null,null,null,null,0]
[null,null,null,null,null,null,null,null,null,null,null,null,null,null,null,0]
[null,null,null,null,null,null,null,null,null,null,null,null,null,null,null,0]
[null,null,null,null,null,null,null,null,null,null,null,null,null,null,null,0]
[null,null,null,null,null,null,null,null,null,null,null,null,null,null,null,0]
[null,null,null,null,null,null,null,null,null,null,null,null,null,null,null,0]
[null,null,null,null,null,null,null,null,null,null,null,null,null,null,null,0]
[null,null,null,null,null,null,null,null,null,null,null,null,null,null,null,0]
[null,null,null,null,null,null,null,null,null,null,null,null,null,null,null,0]
[null,null,null,null,null,null,null,null,null,null,null,null,null,null,null,0]
[null,null,null,null,null,null,null,null,null,null,null,null,null,null,null,0]
[null,null,null,null,null,null,null,null,null,null,null,null,null,null,null,0]
[null,null,null,null,null,null,null,null,null,null,null,null,null,null,null,0]
[null,null,null,null,null,null,null,null,null,null,null,null,null,null,null,0]
[null,null,null,null,null,null,null,null,null,null,null,null,null,null,null,0]
[null,null,null,null,null,null,null,null,null,null,null,null,null,null,null,0]
[null,null,null,null,null,null,null,null,null,null,null,null,null,null,null,0]
[null,null,null,null,null,null,null,null,null,null,null,null,null,null,null,0]

{"sheet":"Wellnes and PE","index":9,"n_rows":33,"n_cols":16,"rows_kept":33,"cut":false,"hidden":true,"merged":[[4,0,5,2],[5,5,5,6],[5,7,5,8],[5,9,5,10],[6,1,6,12],[4,11,4,12]]}
[]
[]
[]
[null,null,null,null,null,null,null,null,null,null,null,{"$f":"Summary!B5","v":"INSERT CAMPUS NAME"}]
["Wellness and Physical Education",null,null,{"$f":"A5&\" Current Rating  ------------------------>\"","v":"Wellness and Physical Education Current Rating  ------------------------>"},null,null,null,null,null,null,null,{"$f":"M33","v":"Recognized"}]
[null,null,null,"Unacceptable",null,"Acceptable",null,"Recognized",null,"Exemplary",null,"Evidence","Rating",null,null,{"$f":"COUNTIF(P7:P77,\">1\")","v":0}]
[]
["All level #1","Students participated in Red Ribbon Week events.",null,"Campus students' participation in fewer than 3 days of events during the week.",null,"Campus students' participation in 3 days of events during the week.",null,"Campus students' participation in 4 days of events during the week.",null,"Campus students' participation in 5 days of events during the week.","X","FLYER ",{"$f":"IF(ISLOGICAL(IF(G8=\"X\",\"Acceptable\",IF(I8=\"X\",\"Recognized\",IF(K8=\"X\",\"Exemplary\",IF(E8=\"X\",\"Unacceptable\"))))),\"\",IF(G8=\"X\",\"Acceptable\",IF(I8=\"X\",\"Recognized\",IF(K8=\"X\",\"Exemplary\",IF(E8=\"X\",\"Unacceptable\")))))","v":"Exemplary"},null,null,{"$f":"COUNTA(G8,I8,K8)","v":1}]
["All level #2","Coordinated Approach to Children's Health (CATCH) Program participation.",null,"Campus submitted NO CATCH Binder for the school year.","X","Campus submitted CATCH Binder for the school year and scored less than 100 points on the rubric.",null,"Campus submitted CATCH Binder for the school year and scored at least 100 points based on rubric.",null,"Campus submitted CATCH Binder for the school year and scored at least 300 points based on rubric.",null,"CATCH Binder score from C&I Department committee review.","Unacceptable",null,null,0]
["All level #3","FitnessGram participation and results for tested students grades 3 to 12.",null,"Below 90% of students tested.",null,"At least 90% of students tested and have documentation for untested students.",null,"At least 95% of students were tested and have documentation for untested students.",null,"100% of students were tested using the Fitness Gram.","X","Fitness Gram report for campus as of end of assessment window for Spring.","Exemplary",null,null,1]
["All level #4","Get Moving Activities participation in Community/Campus runs, walks, and rides.",null,"Campus did not participate in any Get Moving activities.",null,"Campus participated in at least one event sponsored by school or community.",null,"Campus participated in at least two events sponsored by school or community.","X","Campus participated in at least three events sponsored by school or community.",null,"PICTURES, DONATION RECORDS","Recognized",null,null,1]
["All level #5","Campus sponsored a school or participated in a community Health Fair and Blood Drive.  (NOTE: Blood drives are for adults only)",null,"Campus did not participate in any Health Fairs or Blood Drives.",null,"Campus participated in at least one Health Fair and one Blood Drive sponsored by school, district, or community.","X","Campus sponsored at least one Health Fair and participated in at least one Blood Drive sponsored by school, district, or community.",null,"Campus sponsored at least one Health Fair and one Blood Drive and participated in at least one Health Fair or Blood Drive sponsored by district or community.",null,"PICTURES","Acceptable",null,null,1]
["All level #6","Campus hosted CATCH Program activities during the 2014-2015 school year.",null,"Campus held fewer than 4 CATCH Program activities.","X","Campus hosted at least 4 CATCH Program activities during the school year.",null,"Campus hosted at least 5 CATCH Program activities during the school year.",null,"Campus hosted at least 6 CATCH Program activities during the school year.",null,"CATCH Binder score from C&I Department committee review.","Unacceptable",null,null,0]
[]
[]
[]
[]
[]
[]
[]
[null,null,null,null,null,null,null,null,null,null,null,null,"",null,null,{"$f":"COUNTA(G21,I21,K21)","v":0}]
[null,null,null,null,null,null,null,null,null,null,null,null,"",null,null,{"$f":"COUNTA(G22,I22,K22)","v":0}]
[null,null,null,null,null,null,null,null,null,null,null,null,"",null,null,{"$f":"COUNTA(G23,I23,K23)","v":0}]
[null,null,null,null,null,null,null,null,null,null,null,{"$f":"COUNTIF(M$8:M$23,\"unacceptable\")","v":2},"",null,null,{"$f":"COUNTA(G24,I24,K24)","v":0}]
[null,null,null,null,null,null,null,null,null,null,null,{"$f":"COUNTIF(M$8:M$23,\"Acceptable\")","v":1},{"$f":"L25*1","v":1}]
[null,null,null,null,null,null,null,null,null,null,null,{"$f":"COUNTIF(M8:M24,\"Recognized\")","v":1},{"$f":"L26*2","v":2}]
[null,null,null,null,null,null,null,null,null,null,null,{"$f":"COUNTIF(M8:M24,\"Exemplary\")","v":2},{"$f":"L27*3","v":6}]
[null,null,null,null,null,null,null,null,null,null,null,{"$f":"SUM(L24:L27)","v":6},{"$f":"ROUND((SUM(M24:M27)/L28),0)","v":2}]
[null,null,null,null,null,null,null,null,null,null,null,0,"Unacceptable"]
[null,null,null,null,null,null,null,null,null,null,null,1,"Acceptable"]
[null,null,null,null,null,null,null,null,null,null,null,2,"Recognized"]
[null,null,null,null,null,null,null,null,null,null,null,3,"Exemplary"]
[null,null,null,null,null,null,null,null,null,null,null,null,{"$f":"IF(ISERROR(VLOOKUP(M28,L29:M32,2)),\"\",VLOOKUP(M28,L29:M32,2))","v":"Recognized"}]

{"sheet":"Community and Parental Inv","index":10,"n_rows":27,"n_cols":16,"rows_kept":27,"cut":false,"hidden":true,"merged":[[4,0,5,2],[5,5,5,6],[5,7,5,8],[5,9,5,10],[6,0,6,12],[4,11,4,12]]}
[]
[]
[]
[null,null,null,null,null,null,null,null,null,null,null,{"$f":"Summary!B5","v":"INSERT CAMPUS NAME"}]
["Community and Parental Involvement",null,null,{"$f":"A5&\" Current Rating  --------------------->\"","v":"Community and Parental Involvement Current Rating  --------------------->"},null,null,null,null,null,null,null,{"$f":"M27","v":"Recognized"}]
[null,null,null,"Unacceptable",null,"Acceptable",null,"Recognized",null,"Exemplary",null,"Evidence","Rating",null,null,{"$f":"COUNTIF(P7:P80,\">1\")","v":0}]
["Community and Parental Involvement",null,null,null,null,null,null,null,null,null,null,null,null,null,null,{"$f":"COUNTA(G7,I7,K7)","v":0}]
["All level #1","Conducted parent activities with emphasis on all content areas and provided strategies to prepare students for the state assessments.",null,"Campus provided four or fewer activities for the year.",null,"Campus provided 5 to 10 activities for the year.",null,"Campus provided 11 to 15 activities for the year.",null,"Campus provided more than 15 activities focused on state assessments for the year.","X","AGENDAS AND SIGN IN SHEETS",{"$f":"IF(ISLOGICAL(IF(G8=\"X\",\"Acceptable\",IF(I8=\"X\",\"Recognized\",IF(K8=\"X\",\"Exemplary\",IF(E8=\"X\",\"Unacceptable\"))))),\"\",IF(G8=\"X\",\"Acceptable\",IF(I8=\"X\",\"Recognized\",IF(K8=\"X\",\"Exemplary\",IF(E8=\"X\",\"Unacceptable\")))))","v":"Exemplary"},null,null,1]
["All level #2","Increased parent participation in meetings relevant to \nDistrict Programs/ Services and District/State expectations to assist students in preparing for assessments.",null,"Decreased parental participation or no increase compared to 2013-2014.",null,"At least 1% increase compared to 2013-2014.",null,"At least 6% increase compared to 2013-2014.","X","At least 11% increase compared to 2013-2014.",null,"ATTENDANCE COMPARISON REPORT",{"$f":"IF(ISLOGICAL(IF(G9=\"X\",\"Acceptable\",IF(I9=\"X\",\"Recognized\",IF(K9=\"X\",\"Exemplary\",IF(E9=\"X\",\"Unacceptable\"))))),\"\",IF(G9=\"X\",\"Acceptable\",IF(I9=\"X\",\"Recognized\",IF(K9=\"X\",\"Exemplary\",IF(E9=\"X\",\"Unacceptable\")))))","v":"Recognized"},null,null,1]
["All level #3","Provided Academic/ Assessment  tutorials/ Accelerated instruction for targeted students.     NOTE: Calculate percentage of unduplicated attendance of targeted students, i.e. 458 of targeted individuals attended sessions/697 total targeted to attend sessions = 66%",null,"Minimal evidence of tutorials to support state assessment knowledge and skills with less than 50% attendance by targeted students.",null,"There is some evidence that attendance in academic tutorials are taking place for targeted student populations with at least 50% attendance by targeted students.","X","There is evidence that regular attendance in academic tutorials are taking place for targeted student populations with at least 65% attendance by targeted students.",null,"There is a consistent evidence that attendance in academic tutorials is taking place for targeted student populations with at least 80% attendance by targeted students.",null,"ATTENDACE SHEETS ","Acceptable",null,null,1]
["All level #4","Participated in Community Service Projects (for example: Food Drive, Toys for Tots, etc.)",null,"Fewer than four Community Service Projects annually",null,"At least 4 Community Service Projects annually","X","At least 7 Community Service Projects annually",null,"At least 10 Community Service Projects annually",null,"PICTURES ","Acceptable",null,null,1]
[null,null,null,null,null,null,null,null,null,null,null,null,"",null,null,0]
[null,null,null,null,null,null,null,null,null,null,null,null,"",null,null,{"$f":"COUNTA(G12,I12,K12)","v":0}]
[null,null,null,null,null,null,null,null,null,null,null,null,"",null,null,0]
[null,null,null,null,null,null,null,null,null,null,null,null,"",null,null,0]
[null,null,null,null,null,null,null,null,null,null,null,null,"",null,null,0]
[null,null,null,null,null,null,null,null,null,null,null,null,"",null,null,0]
[null,null,null,null,null,null,null,null,null,null,null,{"$f":"COUNTIF(M$8:M$17,\"unacceptable\")","v":0},"",null,null,0]
[null,null,null,null,null,null,null,null,null,null,null,{"$f":"COUNTIF(M$8:M$17,\"Acceptable\")","v":2},{"$f":"L19*1","v":2},null,null,0]
[null,null,null,null,null,null,null,null,null,null,null,{"$f":"COUNTIF(M8:M17,\"Recognized\")","v":1},{"$f":"L20*2","v":2}]
[null,null,null,null,null,null,null,null,null,null,null,{"$f":"COUNTIF(M8:M17,\"Exemplary\")","v":1},{"$f":"L21*3","v":3}]
[null,null,null,null,null,null,null,null,null,null,null,{"$f":"SUM(L18:L21)","v":4},{"$f":"ROUND((SUM(M18:M21)/L22),0)","v":2}]
[null,null,null,null,null,null,null,null,null,null,null,0,"Unacceptable"]
[null,null,null,null,null,null,null,null,null,null,null,1,"Acceptable"]
[null,null,null,null,null,null,null,null,null,null,null,2,"Recognized"]
[null,null,null,null,null,null,null,null,null,null,null,3,"Exemplary"]
[null,null,null,null,null,null,null,null,null,null,null,null,{"$f":"IF(ISERROR(VLOOKUP(M22,L23:M26,2)),\"\",VLOOKUP(M22,L23:M26,2))","v":"Recognized"}]

{"sheet":"21st Century Workforce Dev","index":11,"n_rows":24,"n_cols":16,"rows_kept":24,"cut":false,"hidden":true,"merged":[[4,0,5,2],[5,5,5,6],[5,7,5,8],[5,9,5,10],[4,11,4,12]]}
[]
[]
[]
[null,null,null,null,null,null,null,null,null,null,null,{"$f":"Summary!B5","v":"INSERT CAMPUS NAME"}]
["21st Century Workforce Development",null,null,{"$f":"A5&\" Current Rating  --------------------------------->\"","v":"21st Century Workforce Development Current Rating  --------------------------------->"},null,null,null,null,null,null,null,{"$f":"M24","v":"Acceptable"}]
[null,null,null,"Unacceptable",null,"Acceptable",null,"Recognized",null,"Exemplary",null,"Evidence","Rating",null,null,{"$f":"COUNTIF(P7:P77,\">1\")","v":0}]
["All levels  #1","Students participated in Career Day events.",null,"Campus did not host a career event at the campus.",null,"Campus hosted own career event with at least 10 professions represented.","X","Campus hosted own career event with at least 15 professions represented.",null,"Campus hosted own career event with at least 20 professions represented.",null,"PARENT MEMO, FLYER",{"$f":"IF(ISLOGICAL(IF(G7=\"X\",\"Acceptable\",IF(I7=\"X\",\"Recognized\",IF(K7=\"X\",\"Exemplary\",IF(E7=\"X\",\"Unacceptable\"))))),\"\",IF(G7=\"X\",\"Acceptable\",IF(I7=\"X\",\"Recognized\",IF(K7=\"X\",\"Exemplary\",IF(E7=\"X\",\"Unacceptable\")))))","v":"Acceptable"},null,null,{"$f":"COUNTA(G7,I7,K7)","v":1}]
["All levels  #2","Students participated in College days or events.",null,"Campus did not participate in district event or host a college event at campus.",null,"Campus hosted own college event with at least 5 colleges represented.","X","Campus hosted own college event with at least 10 colleges represented.",null,"Campus hosted own college event with at least 15 colleges represented.",null,"FLYER",{"$f":"IF(ISLOGICAL(IF(G8=\"X\",\"Acceptable\",IF(I8=\"X\",\"Recognized\",IF(K8=\"X\",\"Exemplary\",IF(E8=\"X\",\"Unacceptable\"))))),\"\",IF(G8=\"X\",\"Acceptable\",IF(I8=\"X\",\"Recognized\",IF(K8=\"X\",\"Exemplary\",IF(E8=\"X\",\"Unacceptable\")))))","v":"Acceptable"}]
["Secondary ONLY","Personal growth plans (PGPs) were created for students in grades 8-12 and approved by parents/guardians.",null,"Less than 100% by the end of the year.",null,"100% completed by the end of the school year.",null,"100% completed by March 31, 2015.",null,"100% completed by the end of the 1st semester.",null,null,{"$f":"IF(ISLOGICAL(IF(G9=\"X\",\"Acceptable\",IF(I9=\"X\",\"Recognized\",IF(K9=\"X\",\"Exemplary\",IF(E9=\"X\",\"Unacceptable\"))))),\"\",IF(G9=\"X\",\"Acceptable\",IF(I9=\"X\",\"Recognized\",IF(K9=\"X\",\"Exemplary\",IF(E9=\"X\",\"Unacceptable\")))))","v":""},null,null,{"$f":"COUNTA(G9,I9,K9)","v":0}]
["High School ONLY #1","Career and Technical Education students were enrolled in a Career Cluster.",null,"Less than 85% of CTE students were enrolled in a career cluster.",null,"At least 85% of CTE students were enrolled in a career cluster.",null,"At least 90% of CTE students were enrolled in a career cluster.",null,"At least 95% of CTE students were enrolled in a career cluster.",null,null,{"$f":"IF(ISLOGICAL(IF(G10=\"X\",\"Acceptable\",IF(I10=\"X\",\"Recognized\",IF(K10=\"X\",\"Exemplary\",IF(E10=\"X\",\"Unacceptable\"))))),\"\",IF(G10=\"X\",\"Acceptable\",IF(I10=\"X\",\"Recognized\",IF(K10=\"X\",\"Exemplary\",IF(E10=\"X\",\"Unacceptable\")))))","v":""},null,null,{"$f":"COUNTA(G10,I10,K10)","v":0}]
["High School ONLY #2","Career and Technical Education students participated in Career and Technology Student Organizations (CTSOs).",null,"Less than 4% of CTE students participated in CTSO organizations.",null,"At least 4% of CTE students participated in CTSO organizations.",null,"At least 6% of CTE students participated in CTSO organizations.",null,"At least 8% of CTE students participated in CTSO organizations.",null,null,"",null,null,0]
["High School ONLY #3","Percent of all eligible Senior/Grade 12 students that tested on a normed/standardized  assessment for college acceptance/readiness by graduation (PSAT, SAT, ACT, TSI).",null,"Less than 70% of eligible students were assessed on at least one measure.",null,"At least 70% of eligible students were assessed on at least one measure.",null,"At least 80% of eligible students were assessed on at least one measure.",null,"At least 90% of eligible students were assessed on at least one measure.",null,null,"",null,null,0]
[null,null,null,null,null,null,null,null,null,null,null,null,"",null,null,0]
[null,null,null,null,null,null,null,null,null,null,null,null,"",null,null,0]
[null,null,null,null,null,null,null,null,null,null,null,{"$f":"COUNTIF(M$7:M$15,\"unacceptable\")","v":0},"",null,null,0]
[null,null,null,null,null,null,null,null,null,null,null,{"$f":"COUNTIF(M$7:M$15,\"Acceptable\")","v":2},{"$f":"L16*1","v":2}]
[null,null,null,null,null,null,null,null,null,null,null,{"$f":"COUNTIF(M7:M15,\"Recognized\")","v":0},{"$f":"L17*2","v":0}]
[null,null,null,null,null,null,null,null,null,null,null,{"$f":"COUNTIF(M7:M15,\"Exemplary\")","v":0},{"$f":"L18*3","v":0}]
[null,null,null,null,null,null,null,null,null,null,null,{"$f":"SUM(L15:L18)","v":2},{"$f":"ROUND((SUM(M15:M18)/L19),0)","v":1}]
[null,null,null,null,null,null,null,null,null,null,null,0,"Unacceptable"]
[null,null,null,null,null,null,null,null,null,null,null,1,"Acceptable"]
[null,null,null,null,null,null,null,null,null,null,null,2,"Recognized"]
[null,null,null,null,null,null,null,null,null,null,null,3,"Exemplary"]
[null,null,null,null,null,null,null,null,null,null,null,null,{"$f":"IF(ISERROR(VLOOKUP(M19,L20:M23,2)),\"\",VLOOKUP(M19,L20:M23,2))","v":"Acceptable"}]

{"sheet":"Dropout Prevention Strategies","index":12,"n_rows":21,"n_cols":16,"rows_kept":21,"cut":false,"hidden":true,"merged":[[4,0,5,2],[5,5,5,6],[5,7,5,8],[5,9,5,10],[4,11,4,12]]}
[]
[]
[]
[null,null,null,null,null,null,null,null,null,null,null,{"$f":"Summary!B5","v":"INSERT CAMPUS NAME"}]
["Dropout Prevention Strategies",null,null,null,null,{"$f":"A5&\" Current Rating  ---------->\"","v":"Dropout Prevention Strategies Current Rating  ---------->"},null,null,null,null,null,{"$f":"M21","v":"Exemplary"}]
[null,null,null,"Unacceptable",null,"Acceptable",null,"Recognized",null,"Exemplary",null,"Evidence/ Source","Rating",null,null,{"$f":"COUNTIF(P7:P74,\">1\")","v":0}]
["All level 1","Attendance rate for at-risk students for 2013-2014 based on PEIMS at-risk attendance report.",null,"Less than 20%",null,"More than 20%",null,"More than 50%",null,"More than 80%","X","ADA/ADM STATISTIC REPORT, AT-RISK ATTENDANCE REPORT",{"$f":"IF(ISLOGICAL(IF(G7=\"X\",\"Acceptable\",IF(I7=\"X\",\"Recognized\",IF(K7=\"X\",\"Exemplary\",IF(E7=\"X\",\"Unacceptable\"))))),\"\",IF(G7=\"X\",\"Acceptable\",IF(I7=\"X\",\"Recognized\",IF(K7=\"X\",\"Exemplary\",IF(E7=\"X\",\"Unacceptable\")))))","v":"Exemplary"},null,null,{"$f":"COUNTA(G7,I7,K7)","v":1}]
["All level 2","Percentage of students retained in 2013-2014 from campus TAPR report or PEIMS retention data report.",null,"More than 35%",null,"Less than 36%",null,"Less than 26%",null,"Less than 11%","X","COMPILED RETENTION LIST",{"$f":"IF(ISLOGICAL(IF(G8=\"X\",\"Acceptable\",IF(I8=\"X\",\"Recognized\",IF(K8=\"X\",\"Exemplary\",IF(E8=\"X\",\"Unacceptable\"))))),\"\",IF(G8=\"X\",\"Acceptable\",IF(I8=\"X\",\"Recognized\",IF(K8=\"X\",\"Exemplary\",IF(E8=\"X\",\"Unacceptable\")))))","v":"Exemplary"},null,null,{"$f":"COUNTA(G8,I8,K8)","v":1}]
["All level 3","Percentage of  2014-2015 at-risk students that participated in accelerated instruction (e.g. before school, after school, and Saturday tutorials; summer school; 21st Century; credit recovery programs; summer bridge programs)",null,"Less than 20%",null,"At least 20%",null,"At least 50%","X","At least 80%",null,"Calculated by unduplicated roster of all current at-risk students who participated in at least one program divided by total at-risk enrollment ",{"$f":"IF(ISLOGICAL(IF(G9=\"X\",\"Acceptable\",IF(I9=\"X\",\"Recognized\",IF(K9=\"X\",\"Exemplary\",IF(E9=\"X\",\"Unacceptable\"))))),\"\",IF(G9=\"X\",\"Acceptable\",IF(I9=\"X\",\"Recognized\",IF(K9=\"X\",\"Exemplary\",IF(E9=\"X\",\"Unacceptable\")))))","v":"Recognized"},null,null,{"$f":"COUNTA(G9,I9,K9)","v":1}]
["All level 4","Percentage of 2014-2015 at-risk students that participated and/or were served by intervention strategies (e.g. BAC, BLA, Lincoln Park, RTI, SSI, Pre-K Program, Dyslexia Program, Class Size Reduction Program, At-Risk Counselor, Dropout Program Specialist, CIS Site Coordinator, Probation Officer, Living with Science, COMPASS, Think Through Math, and iStation)",null,"Less than 20%",null,"At least 20%",null,"At least 50%","x","At least 80%",null,"Calculated by unduplicated student roster of all current at-risk students who were served in at least one intervention activity divided by total at-risk enrollment ",{"$f":"IF(ISLOGICAL(IF(G10=\"X\",\"Acceptable\",IF(I10=\"X\",\"Recognized\",IF(K10=\"X\",\"Exemplary\",IF(E10=\"X\",\"Unacceptable\"))))),\"\",IF(G10=\"X\",\"Acceptable\",IF(I10=\"X\",\"Recognized\",IF(K10=\"X\",\"Exemplary\",IF(E10=\"X\",\"Unacceptable\")))))","v":"Recognized"},null,null,{"$f":"COUNTA(G10,I10,K10)","v":1}]
[null,null,null,null,null,null,null,null,null,null,null,{"$f":"COUNTIF(M$7:M$10,\"unacceptable\")","v":0}]
[null,null,null,null,null,null,null,null,null,null,null,{"$f":"COUNTIF(M$7:M$10,\"Acceptable\")","v":0},{"$f":"L12*1","v":0}]
[null,null,null,null,null,null,null,null,null,null,null,{"$f":"COUNTIF(M7:M10,\"Recognized\")","v":2},{"$f":"L13*2","v":4}]
[null,null,null,null,null,null,null,null,null,null,null,{"$f":"COUNTIF(M7:M10,\"Exemplary\")","v":2},{"$f":"L14*3","v":6}]
[null,null,null,null,null,null,null,null,null,null,null,{"$f":"SUM(L11:L14)","v":4},{"$f":"ROUND((SUM(M11:M14)/L15),0)","v":3}]
[null,null,null,null,null,null,null,null,null,null,null,0,"Unacceptable"]
[null,null,null,null,null,null,null,null,null,null,null,1,"Acceptable"]
[null,null,null,null,null,null,null,null,null,null,null,2,"Recognized"]
[null,null,null,null,null,null,null,null,null,null,null,3,"Exemplary"]
[null,null,null,null,null,null,null,null,null,null,null,0,"Unacceptable"]
[null,null,null,null,null,null,null,null,null,null,null,null,{"$f":"IF(ISERROR(VLOOKUP(M15,L16:M20,2)),\"\",VLOOKUP(M15,L16:M20,2))","v":"Exemplary"}]

{"sheet":"Second Language Aquisition","index":13,"n_rows":22,"n_cols":16,"rows_kept":22,"cut":false,"hidden":true,"merged":[[4,0,5,2],[5,5,5,6],[5,7,5,8],[5,9,5,10],[4,11,4,12]]}
[]
[]
[]
[null,null,null,null,null,null,null,null,null,null,null,{"$f":"Summary!B5","v":"INSERT CAMPUS NAME"}]
["Second Language Acquisition",null,null,null,null,{"$f":"A5&\" Current Rating  --------------->\"","v":"Second Language Acquisition Current Rating  --------------->"},null,null,null,null,null,{"$f":"M22","v":"Exemplary"}]
[null,null,null,"Unacceptable",null,"Acceptable",null,"Recognized",null,"Exemplary",null,"Evidence","Rating",null,null,{"$f":"COUNTIF(P7:P59,\">1\")","v":0}]
["All level #1","ELL Students were provided with cultural awareness experiences (i.e., EL Dio del Muertos, Charro Days, Cinco de Mayo, 16 de Septiembre, Chinese New Year, and Black Heritage Month, etc.).",null,"Students participated in less than 3 experiences.",null,"ELL students participated in at least three  experiences.",null,"ELL students participated in at least five experiences.",null,"ELL students participated in more than five experiences.","X","STUDENT WORK",{"$f":"IF(ISLOGICAL(IF(G7=\"X\",\"Acceptable\",IF(I7=\"X\",\"Recognized\",IF(K7=\"X\",\"Exemplary\",IF(E7=\"X\",\"Unacceptable\"))))),\"\",IF(G7=\"X\",\"Acceptable\",IF(I7=\"X\",\"Recognized\",IF(K7=\"X\",\"Exemplary\",IF(E7=\"X\",\"Unacceptable\")))))","v":"Exemplary"},null,null,{"$f":"COUNTA(G7,I7,K7)","v":1}]
["All level #2","Intervention plans for ELL Students enrolled in the US Schools for four or more years reflect supplemental academic/linguistic instructional support.",null,"Less than 70% of ELL students in US schools more than four years were provided intervention plans that reflect supplemental academic/linguistic instructional support.",null,"More than 70% of ELL students in US schools more than four years were provided intervention plans that reflect supplemental academic/linguistic instructional support.",null,"More than 80% of ELL students in US schools more than four years were provided intervention plans that reflect supplemental academic/linguistic instructional support.",null,"More than 90% of ELL students in US schools more than four years were provided intervention plans that reflect supplemental academic/linguistic instructional support.","X","ELL INTERVENTION SHEET, STUDENT SUMMARY REPORT",{"$f":"IF(ISLOGICAL(IF(G8=\"X\",\"Acceptable\",IF(I8=\"X\",\"Recognized\",IF(K8=\"X\",\"Exemplary\",IF(E8=\"X\",\"Unacceptable\"))))),\"\",IF(G8=\"X\",\"Acceptable\",IF(I8=\"X\",\"Recognized\",IF(K8=\"X\",\"Exemplary\",IF(E8=\"X\",\"Unacceptable\")))))","v":"Exemplary"},null,null,1]
["All level #3","Parents participated in program activities/meetings informing them of available ELL services that support college readiness.",null,"Parents were not informed about available ELL services that support college readiness.",null,"Parents were informed through at least one activity about available ELL services that support college readiness.",null,"Parents were informed through at least two activities about available ELL services that support college readiness.",null,"Parents were informed through at least three activities about available ELL services that support college readiness.","X","SIGN IN SHEETS AND AGENDA","Exemplary",null,null,1]
["Secondary #1","English Language Learners (ELLs) in grades 6-12 participated in STEM program, Pre-AP/Advanced Placement, dual enrolment, articulated courses, G/T programs and/or similar programs.",null,"Fewer than 30% of identified ELL students participated in the G/T, MS STEM, pre-AP/AP programs or took dual enrollment or articulated courses.",null,"At least 30% of identified ELL students participated in the G/T, STEM, pre-AP/AP programs or took dual enrollment or articulated courses.",null,"At least 40% of identified ELL students participated in the G/T, STEM, pre-AP/AP programs or took dual enrollment or articulated courses.",null,"At least 50% of identified ELL students participated in the G/T, STEM, pre-AP/AP programs or took dual enrollment or articulated courses.",null,null,{"$f":"IF(ISLOGICAL(IF(G10=\"X\",\"Acceptable\",IF(I10=\"X\",\"Recognized\",IF(K10=\"X\",\"Exemplary\",IF(E10=\"X\",\"Unacceptable\"))))),\"\",IF(G10=\"X\",\"Acceptable\",IF(I10=\"X\",\"Recognized\",IF(K10=\"X\",\"Exemplary\",IF(E10=\"X\",\"Unacceptable\")))))","v":""},null,null,{"$f":"COUNTA(G10,I10,K10)","v":0}]
[null,null,null,null,null,null,null,null,null,null,null,null,"",null,null,0]
[null,null,null,null,null,null,null,null,null,null,null,null,"",null,null,0]
[null,null,null,null,null,null,null,null,null,null,null,{"$f":"COUNTIF(M$7:M$13,\"unacceptable\")","v":0},"",null,null,0]
[null,null,null,null,null,null,null,null,null,null,null,{"$f":"COUNTIF(M$7:M$13,\"Acceptable\")","v":0},{"$f":"L14*1","v":0}]
[null,null,null,null,null,null,null,null,null,null,null,{"$f":"COUNTIF(M7:M13,\"Recognized\")","v":0},{"$f":"L15*2","v":0}]
[null,null,null,null,null,null,null,null,null,null,null,{"$f":"COUNTIF(M7:M13,\"Exemplary\")","v":3},{"$f":"L16*3","v":9}]
[null,null,null,null,null,null,null,null,null,null,null,{"$f":"SUM(L13:L16)","v":3},{"$f":"ROUND((SUM(M13:M16)/L17),0)","v":3}]
[null,null,null,null,null,null,null,null,null,null,null,0,"Unacceptable"]
[null,null,null,null,null,null,null,null,null,null,null,1,"Acceptable"]
[null,null,null,null,null,null,null,null,null,null,null,2,"Recognized"]
[null,null,null,null,null,null,null,null,null,null,null,3,"Exemplary"]
[null,null,null,null,null,null,null,null,null,null,null,null,{"$f":"IF(ISERROR(VLOOKUP(M17,L18:M21,2)),\"\",VLOOKUP(M17,L18:M21,2))","v":"Exemplary"}]

{"sheet":"Digital Learning Environment","index":14,"n_rows":26,"n_cols":16,"rows_kept":26,"cut":false,"hidden":true,"merged":[[4,0,5,2],[5,5,5,6],[5,7,5,8],[5,9,5,10],[4,11,4,12]]}
[]
[]
[]
[null,null,null,null,null,null,null,null,null,null,null,{"$f":"Summary!B5","v":"INSERT CAMPUS NAME"}]
["Digital Learning Environments",null,null,null,null,{"$f":"A5&\" Current Rating  ----------------->\"","v":"Digital Learning Environments Current Rating  ----------------->"},null,null,null,null,null,{"$f":"M26","v":"Recognized"}]
[null,null,null,"Unacceptable",null,"Acceptable",null,"Recognized",null,"Exemplary",null,"Evidence","Rating",null,null,{"$f":"COUNTIF(P7:P79,\">1\")","v":0}]
["All level #1","Campus resources (financial/ personnel/ infrastructure, etc.) were aimed at supporting technology integration in instruction.",null,"STARCHART summary for Infrastructure for Technology at less than Developing Level",null,"STARCHART key area was at Developing level for Infrastructure for Technology",null,"STARCHART key area was at Advanced level for Infrastructure for Technology","X","STARCHART key area was at Targeted level for Infrastructure for Technology",null,"STAR CHART REPORT",{"$f":"IF(ISLOGICAL(IF(G7=\"X\",\"Acceptable\",IF(I7=\"X\",\"Recognized\",IF(K7=\"X\",\"Exemplary\",IF(E7=\"X\",\"Unacceptable\"))))),\"\",IF(G7=\"X\",\"Acceptable\",IF(I7=\"X\",\"Recognized\",IF(K7=\"X\",\"Exemplary\",IF(E7=\"X\",\"Unacceptable\")))))","v":"Recognized"},null,null,{"$f":"COUNTA(G7,I7,K7)","v":1}]
["All level #2","Campus staff completed professional development with technology as a tool to assist student learning including, but not limited to,  training on technology integration (All Technology Services Classes) , iStation, Think through Math, Aware, Tango, calculators, Microsoft software, CAD applications, Graphic design, iPad integration (Bilingual education), etc.",null,"Less than 90% of faculty have at least  9 hours per teacher of professional development.",null,"At least 90% of faculty have at least  9 hours per teacher of professional development.","X","At least 90% of faculty have at least  18 hours per teacher of professional development.",null,"At least 90% of faculty have at least  30 hours per teacher of professional development.",null,"AGENDAS, HANDOUTS",{"$f":"IF(ISLOGICAL(IF(G8=\"X\",\"Acceptable\",IF(I8=\"X\",\"Recognized\",IF(K8=\"X\",\"Exemplary\",IF(E8=\"X\",\"Unacceptable\"))))),\"\",IF(G8=\"X\",\"Acceptable\",IF(I8=\"X\",\"Recognized\",IF(K8=\"X\",\"Exemplary\",IF(E8=\"X\",\"Unacceptable\")))))","v":"Acceptable"},null,null,{"$f":"COUNTA(G8,I8,K8)","v":1}]
["All level #3","Innovative technology initiatives were implemented at the campus such as project-based learning with technology, flipped classrooms, clickers, digital devices (iPads, Leap Frog, calculators, etc.), and/or web 2.0 tools. IPads in Early Ed (Bilingual Department), Science Adoption in High school or any tablet or computer based curriculum. ",null,"STARCHART summary for Teaching and Learning at less than Developing Level",null,"STARCHART summary for Teaching and Learning at Developing Level",null,"STARCHART summary for Teaching and Learning at Advanced Level","X","STARCHART summary for Teaching and Learning at Targeted Level",null,"STAR CHART REPORT","Recognized",null,null,1]
["All level #4","Digital Citizenship (cyber bullying) training was provided for students, parents and/or teachers.",null,"No training was provided.",null,"Only one group was trained.",null,"Two of the three groups were trained.",null,"All three groups were trained (students, parents/guardians, and teachers).","X","HANDOUTS, AGENDA","Exemplary",null,null,1]
["All level #5","Digital communication was supported between students, teachers, and parents such as website, Office 365, Google Tools,  Project Share, eSchool Plus, Edmodo, Twitter, BISD and SharpSchool email, etc.",null,"Less than three forms of digital communication were supported",null,"At least three forms of digital communication were supported.",null,"At least five forms of digital communication were supported.",null,"At least seven forms of digital communication were supported.","X","WEBSITE PRINTOUTS ","Exemplary",null,null,1]
[]
[null,null,null,null,null,null,null,null,null,null,null,null,"",null,null,0]
[null,null,null,null,null,null,null,null,null,null,null,null,"",null,null,0]
[null,null,null,null,null,null,null,null,null,null,null,null,"",null,null,0]
[null,null,null,null,null,null,null,null,null,null,null,null,"",null,null,0]
[null,null,null,null,null,null,null,null,null,null,null,null,"",null,null,0]
[null,null,null,null,null,null,null,null,null,null,null,{"$f":"COUNTIF(M$7:M$12,\"unacceptable\")","v":0},"",null,null,0]
[null,null,null,null,null,null,null,null,null,null,null,{"$f":"COUNTIF(M$7:M$12,\"Acceptable\")","v":1},{"$f":"L19*1","v":1}]
[null,null,null,null,null,null,null,null,null,null,null,{"$f":"COUNTIF(M7:M12,\"Recognized\")","v":2},{"$f":"L20*2","v":4}]
[null,null,null,null,null,null,null,null,null,null,null,{"$f":"COUNTIF(M7:M12,\"Exemplary\")","v":2},{"$f":"L21*3","v":6}]
[null,null,null,null,null,null,null,null,null,null,null,{"$f":"SUM(L18:L21)","v":5},{"$f":"ROUND((SUM(M19:M21)/L22),0)","v":2}]
[null,null,null,null,null,null,null,null,null,null,null,1,"Acceptable"]
[null,null,null,null,null,null,null,null,null,null,null,2,"Recognized"]
[null,null,null,null,null,null,null,null,null,null,null,3,"Exemplary"]
[null,null,null,null,null,null,null,null,null,null,null,null,{"$f":"IF(ISERROR(VLOOKUP(M22,L23:M25,2)),\"\",VLOOKUP(M22,L23:M25,2))","v":"Recognized"}]

{"sheet":"Educational Programs for GT","index":15,"n_rows":25,"n_cols":16,"rows_kept":25,"cut":false,"hidden":true,"merged":[[4,11,4,12],[4,0,5,2],[5,5,5,6],[5,7,5,8],[5,9,5,10]]}
[]
[]
[]
[null,null,null,null,null,null,null,null,null,null,null,{"$f":"Summary!B5","v":"INSERT CAMPUS NAME"}]
["Educational Programs for Gifted and Talented",null,null,null,null,{"$f":"A5&\" Current Rating  ----------->\"","v":"Educational Programs for Gifted and Talented Current Rating  ----------->"},null,null,null,null,null,{"$f":"M25","v":"Recognized"}]
[null,null,null,"Unacceptable",null,"Acceptable",null,"Recognized",null,"Exemplary",null,"Evidence","Rating",null,null,{"$f":"COUNTIF(P7:P55,\">1\")","v":0}]
[null,null,null,null,null,null,null,null,null,null,null,null,{"$f":"IF(ISLOGICAL(IF(G7=\"X\",\"Acceptable\",IF(I7=\"X\",\"Recognized\",IF(K7=\"X\",\"Exemplary\",IF(E7=\"X\",\"Unacceptable\"))))),\"\",IF(G7=\"X\",\"Acceptable\",IF(I7=\"X\",\"Recognized\",IF(K7=\"X\",\"Exemplary\",IF(E7=\"X\",\"Unacceptable\")))))","v":""},null,null,{"$f":"COUNTIF(G7,\"x\")+COUNTIF(I7,\"x\")+COUNTIF(K7,\"x\")","v":0}]
["All level 1","The percentage of enrollment nominated for and/or served by Fine Arts and/or Academic Services in grades 1-11 for the 2014-2015 school year based on G/T Enrollment report from eSchool and G/T Nomination Report from counselor divided by total campus enrollment.",null,"Less than 8% served and/or nominated for the 2014-2015 school year.",null,"At least 8% served and/or nominated for the 2014-2015 school year.",null,"At least 12% served and/or nominated for  the 2014-2015 school year.","X","At least 18% served and/or nominated for  the 2014-2015 school year.",null,"GT ENROLLEMENT REPORT, GT NOMINATION REPORT CALCULATION ",{"$f":"IF(ISLOGICAL(IF(G8=\"X\",\"Acceptable\",IF(I8=\"X\",\"Recognized\",IF(K8=\"X\",\"Exemplary\",IF(E8=\"X\",\"Unacceptable\"))))),\"\",IF(G8=\"X\",\"Acceptable\",IF(I8=\"X\",\"Recognized\",IF(K8=\"X\",\"Exemplary\",IF(E8=\"X\",\"Unacceptable\")))))","v":"Recognized"},null,null,{"$f":"COUNTIF(G8,\"x\")+COUNTIF(I8,\"x\")+COUNTIF(K8,\"x\")","v":1}]
["All level 2","G/T identified students (roster from eSchool) participated in showcase opportunities including BISD Brainsville, History Fair, Science Fair, UIL, One Act Play, Destination Imagination, or similar opportunities.",null,"None",null,"Less than 20% of identified G/T students participated in at least one event.",null,"At least 50% identified G/T students participated in at least one event.",null,"At least 80% of identified G/T students participated in at least one event.","X","KIDS SPEAK, PICTURES ",{"$f":"IF(ISLOGICAL(IF(G9=\"X\",\"Acceptable\",IF(I9=\"X\",\"Recognized\",IF(K9=\"X\",\"Exemplary\",IF(E9=\"X\",\"Unacceptable\"))))),\"\",IF(G9=\"X\",\"Acceptable\",IF(I9=\"X\",\"Recognized\",IF(K9=\"X\",\"Exemplary\",IF(E9=\"X\",\"Unacceptable\")))))","v":"Exemplary"},null,null,{"$f":"COUNTIF(G9,\"x\")+COUNTIF(I9,\"x\")+COUNTIF(K9,\"x\")","v":1}]
["All level 3","All teachers assigned G/T identified students during the 2014-2015 school year participated in on-going training appropriate for G/T students.",null,"Not all teachers assigned identified students  have core training  and at least 6 hours of on-going training.",null,"All teachers assigned identified students had required core training and 6 hours of on-going training from Advanced Academics or other G/T approved trainings.","X","All teachers assigned identified students had core training and 6 hours of on-going training from Advanced Academics and 6 hours of other G/T approved trainings.",null,"All teachers assigned identified students had core training and  6 hours of on-going training from Advanced Academics and 12 hours of other G/T approved trainings.",null,"ERO Transcripts and G/T Compliance Report",{"$f":"IF(ISLOGICAL(IF(G10=\"X\",\"Acceptable\",IF(I10=\"X\",\"Recognized\",IF(K10=\"X\",\"Exemplary\",IF(E10=\"X\",\"Unacceptable\"))))),\"\",IF(G10=\"X\",\"Acceptable\",IF(I10=\"X\",\"Recognized\",IF(K10=\"X\",\"Exemplary\",IF(E10=\"X\",\"Unacceptable\")))))","v":"Acceptable"},null,null,1]
["All level 4","Campus offered parent meetings to share or discuss GALAXY Program (G/T) information to promote nominations, program design, educational activities, and/or choice slips.",null,"No opportunities were provided by the campus.",null,"One opportunity was provided by the campus.",null,"Two opportunities were provided by the campus.","X","At least three opportunities were provided by the campus.",null,"POWERPOINT, FLYER, BROCHURES, PICTURES, SIGN IN SHEETS ",{"$f":"IF(ISLOGICAL(IF(G11=\"X\",\"Acceptable\",IF(I11=\"X\",\"Recognized\",IF(K11=\"X\",\"Exemplary\",IF(E11=\"X\",\"Unacceptable\"))))),\"\",IF(G11=\"X\",\"Acceptable\",IF(I11=\"X\",\"Recognized\",IF(K11=\"X\",\"Exemplary\",IF(E11=\"X\",\"Unacceptable\")))))","v":"Recognized"},null,null,1]
[null,null,null,null,null,null,null,null,null,null,null,null,null,null,null,0]
[null,null,null,null,null,null,null,null,null,null,null,null,{"$f":"IF(ISLOGICAL(IF(G13=\"X\",\"Acceptable\",IF(I13=\"X\",\"Recognized\",IF(K13=\"X\",\"Exemplary\",IF(E13=\"X\",\"Unacceptable\"))))),\"\",IF(G13=\"X\",\"Acceptable\",IF(I13=\"X\",\"Recognized\",IF(K13=\"X\",\"Exemplary\",IF(E13=\"X\",\"Unacceptable\")))))","v":""},null,null,0]
[null,null,null,null,null,null,null,null,null,null,null,null,{"$f":"IF(ISLOGICAL(IF(G14=\"X\",\"Acceptable\",IF(I14=\"X\",\"Recognized\",IF(K14=\"X\",\"Exemplary\",IF(E14=\"X\",\"Unacceptable\"))))),\"\",IF(G14=\"X\",\"Acceptable\",IF(I14=\"X\",\"Recognized\",IF(K14=\"X\",\"Exemplary\",IF(E14=\"X\",\"Unacceptable\")))))","v":""},null,null,0]
[null,null,null,null,null,null,null,null,null,null,null,null,{"$f":"IF(ISLOGICAL(IF(G15=\"X\",\"Acceptable\",IF(I15=\"X\",\"Recognized\",IF(K15=\"X\",\"Exemplary\",IF(E15=\"X\",\"Unacceptable\"))))),\"\",IF(G15=\"X\",\"Acceptable\",IF(I15=\"X\",\"Recognized\",IF(K15=\"X\",\"Exemplary\",IF(E15=\"X\",\"Unacceptable\")))))","v":""},null,null,0]
[null,null,null,null,null,null,null,null,null,null,null,{"$f":"COUNTIF(M$7:M$15,\"unacceptable\")","v":0},{"$f":"IF(ISLOGICAL(IF(G16=\"X\",\"Acceptable\",IF(I16=\"X\",\"Recognized\",IF(K16=\"X\",\"Exemplary\",IF(E16=\"X\",\"Unacceptable\"))))),\"\",IF(G16=\"X\",\"Acceptable\",IF(I16=\"X\",\"Recognized\",IF(K16=\"X\",\"Exemplary\",IF(E16=\"X\",\"Unacceptable\")))))","v":""},null,null,0]
[null,null,null,null,null,null,null,null,null,null,null,{"$f":"COUNTIF(M$7:M$16,\"Acceptable\")","v":1},{"$f":"L17*1","v":1}]
[null,null,null,null,null,null,null,null,null,null,null,{"$f":"COUNTIF(M7:M16,\"Recognized\")","v":2},{"$f":"L18*2","v":4}]
[null,null,null,null,null,null,null,null,null,null,null,{"$f":"COUNTIF(M7:M16,\"Exemplary\")","v":1},{"$f":"L19*3","v":3}]
[null,null,null,null,null,null,null,null,null,null,null,{"$f":"SUM(L16:L19)","v":4},{"$f":"ROUND((SUM(M17:M19)/L20),0)","v":2}]
[null,null,null,null,null,null,null,null,null,null,null,0,"Unacceptable"]
[null,null,null,null,null,null,null,null,null,null,null,1,"Acceptable"]
[null,null,null,null,null,null,null,null,null,null,null,2,"Recognized"]
[null,null,null,null,null,null,null,null,null,null,null,3,"Exemplary"]
[null,null,null,null,null,null,null,null,null,null,null,null,{"$f":"IF(ISERROR(VLOOKUP(M20,L21:M24,2)),\"\",VLOOKUP(M20,L21:M24,2))","v":"Recognized"}]